bitfinex/quotes_BTCUSD_20240723
["timestamp","ask_amount","ask_price","bid_price","bid_amount"]
[1721741595051,0.452406,66312.0,66311.0,0.0815]
[1721741595414,0.07348942,66320.0,66297.0,0.0753]
[1721741595559,0.07348942,66320.0,66298.0,0.14701991]
[1721741595560,0.301605,66312.0,66298.0,0.14701991]
[1721741595758,0.301652,66302.0,66298.0,0.14701991]
[1721741595962,0.002794,66319.0,66298.0,0.14701991]
[1721741596166,0.002794,66317.0,66298.0,0.29785291]
[1721741596366,0.150816,66306.0,66299.0,0.0628]
[1721741596546,0.002794,66305.0,66301.0,0.301653]
[1721741596748,0.002794,66314.0,66304.0,0.15082]
[1721741597102,0.04964239,66313.0,66309.0,0.1461]
[1721741597268,0.04964239,66313.0,66309.0,0.29311991]
[1721741597432,0.002794,66312.0,66309.0,0.29311991]
[1721741598031,0.002794,66317.0,66309.0,0.29311991]
[1721741598236,0.452419,66310.0,66309.0,0.1461]
[1721741598490,0.150806,66310.0,66309.0,0.29311991]
[1721741598710,0.150805,66311.0,66309.0,0.29311991]
[1721741598929,0.009,66313.0,66309.0,0.29311991]
[1721741599131,0.52590842,66310.0,66309.0,0.1461]
[1721741599281,0.754032,66310.0,66309.0,0.1461]
[1721741599482,0.009,66313.0,66309.0,0.1461]
[1721741599683,0.002794,66312.0,66309.0,0.1461]
[1721741599909,0.452419,66310.0,66309.0,0.1461]
[1721741600113,1.055645,66310.0,66309.0,0.1461]
[1721741600321,1.060645,66310.0,66309.0,0.1461]
[1721741600546,1.060645,66310.0,66299.0,0.0759]
[1721741600547,0.1110645,66310.0,66299.0,0.0759]
[1721741600842,0.452482,66301.0,66300.0,0.14701991]
[1721741601069,0.452488,66300.0,66299.0,0.0759]
[1721741601247,1.055806,66300.0,66299.0,0.0759]
[1721741601460,0.306617,66310.0,66299.0,0.0759]
[1721741601461,0.301622,66308.0,66299.0,0.22291991]
[1721741601650,0.002794,66309.0,66300.0,0.14701991]
[1721741602111,0.002794,66309.0,66301.0,0.0605]
[1721741602312,0.005,66310.0,66301.0,0.0605]
[1721741602313,0.002794,66307.0,66302.0,0.14701991]
[1721741602424,0.150811,66308.0,66302.0,0.14701991]
[1721741602631,0.15081,66309.0,66302.0,0.29784491]
[1721741602902,0.005,66310.0,66302.0,0.14701991]
[1721741603108,0.005,66310.0,66304.0,0.05]
[1721741603233,0.005,66310.0,66306.0,0.301629]
[1721741603435,0.150795,66315.0,66308.0,0.15081]
[1721741603649,0.025,66318.0,66309.0,0.44863691]
[1721741603851,0.025,66318.0,66310.0,0.00301569]
[1721741604059,0.025,66318.0,66317.0,0.23269]
[1721741604319,0.025,66318.0,66317.0,0.68129091]
[1721741604570,0.025,66318.0,66317.0,1.47185291]
[1721741604804,0.025,66318.0,66317.0,1.42185291]
[1721741605054,0.025,66318.0,66317.0,1.12027191]
[1721741605300,0.025,66318.0,66317.0,0.74569091]
[1721741605496,0.025,66318.0,66317.0,1.47185291]
[1721741605881,0.04988164,66331.0,66330.0,0.150761]
[1721741606082,0.04988164,66331.0,66330.0,0.67780291]
[1721741606549,0.002794,66341.0,66330.0,0.22551991]
[1721741606813,0.002794,66342.0,66331.0,0.14701991]
[1721741607058,0.301477,66340.0,66332.0,0.14701991]
[1721741607295,0.150754,66333.0,66332.0,0.14701991]
[1721741607463,0.150759,66331.0,66330.0,0.0785]
[1721741607726,0.151759,66331.0,66330.0,0.0795]
[1721741607924,0.754795,66331.0,66330.0,0.001]
[1721741608181,1.056313,66331.0,66330.0,0.001]
[1721741608424,0.452317,66325.0,66324.0,0.0619]
[1721741608675,0.753872,66324.0,66323.0,0.0785]
[1721741608904,0.75392,66320.0,66319.0,0.0619]
[1721741609117,0.452385,66315.0,66314.0,0.447]
[1721741609291,0.753975,66315.0,66314.0,0.447]
[1721741609490,1.055565,66315.0,66314.0,0.3685]
[1721741609847,0.753975,66315.0,66314.0,0.3685]
[1721741610049,0.452385,66315.0,66314.0,0.3685]
[1721741610475,0.301547,66325.0,66314.0,0.3685]
[1721741610635,0.002794,66324.0,66314.0,0.3685]
[1721741610837,0.150789,66318.0,66315.0,0.14701991]
[1721741611082,0.002794,66327.0,66314.0,0.001]
[1721741611083,0.151795,66315.0,66314.0,0.001]
[1721741611303,0.453385,66315.0,66314.0,0.001]
[1721741611683,0.301569,66320.0,66311.0,0.0619]
[1721741611886,0.150791,66317.0,66314.0,0.001]
[1721741612091,0.002794,66316.0,66315.0,0.14701991]
[1721741612318,0.002794,66317.0,66315.0,0.14701991]
[1721741612488,0.150793,66316.0,66315.0,0.14701991]
[1721741612689,0.452379,66316.0,66315.0,0.14701991]
[1721741612899,0.753975,66315.0,66314.0,0.001]
[1721741613278,0.753975,66315.0,66311.0,0.0619]
[1721741613279,0.150794,66316.0,66311.0,0.0619]
[1721741613488,0.301573,66319.0,66312.0,0.14701991]
[1721741613695,0.04925977,66328.0,66312.0,0.14701991]
[1721741613696,0.150788,66318.0,66312.0,0.14701991]
[1721741613901,0.0450076,66316.0,66313.0,0.28679309]
[1721741614117,0.04347638,66317.0,66315.0,0.150795]
[1721741614329,0.04347638,66317.0,66316.0,0.14701991]
[1721741614574,0.06749193,66320.0,66317.0,0.301579]
[1721741614771,0.06749193,66322.0,66318.0,0.14701991]
[1721741615020,0.08998924,66324.0,66318.0,0.14701991]
[1721741615021,0.150777,66323.0,66318.0,0.14701991]
[1721741615206,0.71555855,66327.0,66318.0,0.29780791]
[1721741615207,0.150774,66325.0,66318.0,0.29780791]
[1721741615482,0.06749193,66329.0,66320.0,0.0807]
[1721741615689,0.13498386,66339.0,66320.0,0.0807]
[1721741615690,0.06749193,66335.0,66327.0,0.150768]
[1721741615896,0.301486,66338.0,66327.0,0.150768]
[1721741615897,0.06749193,66338.0,66327.0,0.29778791]
[1721741616102,0.06749193,66342.0,66337.0,0.150744]
[1721741616312,0.0085,66343.0,66337.0,0.150744]
[1721741616313,0.0085,66343.0,66338.0,0.15003451]
[1721741616518,0.0492513,66341.0,66338.0,0.14701991]
[1721741616717,0.0085,66343.0,66337.0,0.0150744]
[1721741616988,0.0085,66343.0,66333.0,0.14701991]
[1721741617191,0.301468,66342.0,66333.0,0.44852591]
[1721741617392,0.0085,66343.0,66333.0,0.44852591]
[1721741617393,0.301478,66340.0,66333.0,0.14701991]
[1721741617632,0.150742,66339.0,66333.0,0.29777291]
[1721741617843,0.0085,66343.0,66334.0,0.30149]
[1721741617844,0.301476,66341.0,66334.0,0.30149]
[1721741618045,0.301476,66341.0,66335.0,0.14701991]
[1721741618255,0.0085,66343.0,66336.0,0.3015]
[1721741618256,0.0165,66343.0,66336.0,0.3015]
[1721741618458,0.452235,66337.0,66336.0,0.3015]
[1721741618660,1.10778744,66337.0,66336.0,0.3015]
[1721741618870,1.055215,66337.0,66336.0,0.3015]
[1721741619095,0.150745,66337.0,66336.0,0.3015]
[1721741619265,0.150741,66339.0,66336.0,0.3015]
[1721741619472,0.001,66341.0,66336.0,0.3015]
[1721741619473,0.150743,66338.0,66336.0,0.3015]
[1721741619673,0.150745,66337.0,66336.0,0.3015]
[1721741619875,0.150739,66340.0,66336.0,0.3015]
[1721741620081,0.001,66341.0,66336.0,0.3015]
[1721741620276,0.301481,66340.0,66336.0,0.3015]
[1721741620477,0.0085,66343.0,66337.0,0.14701991]
[1721741620478,0.150741,66339.0,66337.0,0.14701991]
[1721741620683,0.301471,66342.0,66336.0,0.3045]
[1721741620855,0.452235,66337.0,66336.0,0.3045]
[1721741621231,0.753725,66337.0,66336.0,0.3015]
[1721741621610,0.753725,66337.0,66336.0,0.3035]
[1721741621747,0.452235,66337.0,66336.0,0.3035]
[1721741621947,0.452235,66337.0,66336.0,0.3015]
[1721741622154,0.150745,66337.0,66336.0,0.3015]
[1721741622356,0.150745,66337.0,66336.0,0.3045]
[1721741622571,0.452235,66337.0,66336.0,0.3045]
[1721741622797,0.301473,66341.0,66336.0,0.33495]
[1721741623090,0.150743,66338.0,66336.0,0.45151991]
[1721741623200,0.0085,66343.0,66336.0,0.45151991]
[1721741623405,0.0085,66343.0,66337.0,0.14701991]
[1721741623611,0.0085,66343.0,66342.0,0.0628]
[1721741623835,0.0085,66343.0,66342.0,0.51128991]
[1721741624041,0.0085,66343.0,66342.0,0.96349191]
[1721741624244,0.0085,66343.0,66342.0,1.34385991]
[1721741624441,0.0085,66343.0,66342.0,1.04239191]
[1721741624779,0.0085,66343.0,66342.0,0.74092391]
[1721741624981,0.0085,66343.0,66342.0,0.59018991]
[1721741625180,0.159231,66343.0,66342.0,0.44317]
[1721741625393,0.0085,66343.0,66342.0,0.44317]
[1721741626160,0.0085,66343.0,66342.0,0.74092391]
[1721741626413,0.0095,66343.0,66342.0,1.34985991]
[1721741626618,0.0095,66343.0,66342.0,1.04839191]
[1721741627186,0.0095,66343.0,66342.0,1.34985991]
[1721741627388,0.0095,66343.0,66342.0,1.04839191]
[1721741627790,0.0085,66343.0,66342.0,0.74092391]
[1721741628035,0.0085,66343.0,66342.0,1.04239191]
[1721741628343,0.0085,66343.0,66342.0,1.34385991]
[1721741628537,0.0085,66343.0,66342.0,1.34885991]
[1721741628675,0.0085,66343.0,66342.0,1.49582256]
[1721741629139,0.0085,66343.0,66342.0,1.18935456]
[1721741629343,0.0095,66343.0,66342.0,1.19735456]
[1721741629543,0.0095,66343.0,66342.0,0.89588656]
[1721741629842,0.0095,66343.0,66342.0,0.74892391]
[1721741630040,0.0095,66343.0,66342.0,1.05039191]
[1721741630249,0.0095,66343.0,66342.0,1.65332791]
[1721741630480,0.0095,66343.0,66342.0,1.35185991]
[1721741630819,0.0085,66343.0,66342.0,1.34385991]
[1721741631025,0.0085,66343.0,66342.0,1.49082256]
[1721741631242,0.0095,66343.0,66342.0,1.35285991]
[1721741631417,0.0095,66343.0,66342.0,1.05139191]
[1721741631627,0.0085,66343.0,66342.0,1.34385991]
[1721741631830,0.0085,66343.0,66342.0,1.49082256]
[1721741632031,0.0095,66343.0,66342.0,1.49982256]
[1721741632258,0.0095,66343.0,66342.0,1.87429056]
[1721741632432,0.0085,66343.0,66342.0,1.86529056]
[1721741632857,0.0095,66343.0,66342.0,1.87429056]
[1721741633305,0.0095,66343.0,66342.0,2.27575856]
[1721741633580,0.0095,66343.0,66342.0,2.22575856]
[1721741633801,0.0095,66343.0,66342.0,2.27575856]
[1721741634215,0.0085,66343.0,66342.0,2.26675856]
[1721741634346,0.0102,66343.0,66342.0,2.26675856]
[1721741634532,0.0112,66343.0,66342.0,2.28075856]
[1721741634936,0.0112,66343.0,66342.0,2.58222656]
[1721741635180,0.0085,66347.0,66346.0,2.35162]
[1721741635421,0.0085,66347.0,66346.0,4.02857933]
[1721741635637,0.0085,66347.0,66346.0,5.38452833]
[1721741635981,0.0085,66347.0,66346.0,5.42048745]
[1721741636191,0.002,66359.0,66358.0,1.654882]
[1721741636429,0.002,66359.0,66358.0,2.2984093]
[1721741636613,0.002,66359.0,66358.0,2.1984093]
[1721741636826,0.002,66359.0,66358.0,0.44841991]
[1721741637037,0.002,66359.0,66358.0,0.3014]
[1721741637174,0.002,66359.0,66358.0,0.452097]
[1721741637373,0.002,66359.0,66358.0,0.44841991]
[1721741637575,0.002,66359.0,66358.0,0.90051191]
[1721741637799,0.002,66359.0,66358.0,0.54965747]
[1721741637994,0.002,66359.0,66358.0,0.3014]
[1721741638394,0.002,66359.0,66358.0,0.90051191]
[1721741638594,0.002,66359.0,66358.0,1.20190691]
[1721741638897,0.002,66359.0,66358.0,1.50330191]
[1721741639125,0.003,66359.0,66358.0,1.61230191]
[1721741639326,0.003,66359.0,66358.0,1.70926456]
[1721741639524,0.003,66359.0,66358.0,1.73226456]
[1721741639727,0.002,66359.0,66358.0,1.72326456]
[1721741640354,0.002,66359.0,66358.0,1.42186956]
[1721741640554,0.002,66359.0,66358.0,1.72326456]
[1721741640726,0.002,66359.0,66358.0,1.77326456]
[1721741640927,0.002,66359.0,66358.0,2.12465956]
[1721741641130,0.002,66359.0,66358.0,2.25218262]
[1721741641499,0.002,66359.0,66358.0,2.00078762]
[1721741641901,0.003,66359.0,66358.0,2.31318262]
[1721741642099,0.003,66359.0,66358.0,2.27535956]
[1721741642234,0.01,66371.0,66358.0,2.57675456]
[1721741642435,0.01,66371.0,66370.0,2.49954991]
[1721741642668,0.002,66379.0,66378.0,1.54976]
[1721741642885,0.002,66379.0,66378.0,2.63901486]
[1721741643084,0.002,66379.0,66378.0,2.22238391]
[1721741643286,0.002,66379.0,66378.0,2.36934656]
[1721741643461,0.002,66379.0,66378.0,2.46934656]
[1721741643667,0.002,66379.0,66378.0,2.50563064]
[1721741644027,0.002,66379.0,66378.0,2.45563064]
[1721741644180,0.002,66379.0,66378.0,1.91934656]
[1721741644656,0.002,66379.0,66378.0,1.04677591]
[1721741644949,0.002,66379.0,66378.0,1.34807991]
[1721741645265,0.002,66379.0,66378.0,1.49807991]
[1721741645517,0.002,66379.0,66378.0,2.10068791]
[1721741645709,0.003,66379.0,66378.0,1.85378196]
[1721741645910,0.0085,66385.0,66381.0,0.65]
[1721741646067,0.0085,66385.0,66381.0,2.31572791]
[1721741646224,0.0085,66385.0,66381.0,2.61701891]
[1721741646424,0.0085,66385.0,66381.0,2.25741696]
[1721741646642,0.0085,66385.0,66381.0,2.31398156]
[1721741646861,0.0085,66385.0,66381.0,2.86398156]
[1721741647484,0.0085,66385.0,66381.0,3.24558572]
[1721741647687,0.0085,66385.0,66384.0,1.348569]
[1721741647892,0.0085,66385.0,66384.0,2.80145907]
[1721741648089,0.0085,66385.0,66384.0,3.20397363]
[1721741648301,0.00849,66406.0,66398.0,1.651758]
[1721741648508,0.00849,66406.0,66398.0,3.30827607]
[1721741648708,0.00849,66406.0,66398.0,3.42173872]
[1721741648909,0.00849,66406.0,66398.0,1.33152991]
[1721741649144,0.00849,66406.0,66398.0,1.33583591]
[1721741649345,0.00849,66406.0,66398.0,1.18522991]
[1721741649550,0.301184,66405.0,66398.0,1.18522991]
[1721741649753,1.056231,66399.0,66398.0,0.30121]
[1721741649960,1.49614,66399.0,66398.0,0.30121]
[1721741650207,1.54614,66399.0,66398.0,0.30121]
[1721741650406,1.79315991,66399.0,66398.0,0.30121]
[1721741650788,2.35256891,66399.0,66398.0,0.23461]
[1721741651138,2.35256891,66399.0,66362.0,0.4736]
[1721741651139,0.301339,66371.0,66362.0,0.4736]
[1721741651396,0.0782,66374.0,66370.0,0.44093655]
[1721741651583,0.228862,66374.0,66368.0,0.150673]
[1721741651818,0.0786,66383.0,66371.0,0.30134]
[1721741652025,0.4753,66388.0,66373.0,0.0615]
[1721741652204,0.301261,66388.0,66374.0,0.44833991]
[1721741652408,0.0786,66390.0,66374.0,0.44833991]
[1721741652557,0.0786,66390.0,66374.0,0.30132]
[1721741652558,0.150659,66375.0,66374.0,0.30132]
[1721741652764,0.07348942,66389.0,66374.0,0.30132]
[1721741652964,0.07348942,66389.0,66374.0,0.332252]
[1721741652965,0.150652,66378.0,66374.0,0.332252]
[1721741653188,0.07348942,66389.0,66374.0,0.30132]
[1721741653388,0.0786,66390.0,66374.0,0.30132]
[1721741653389,0.0786,66390.0,66375.0,0.14701991]
[1721741653593,0.301272,66386.0,66376.0,0.30131]
[1721741653810,0.451963,66377.0,66376.0,0.30131]
[1721741654183,0.150654,66377.0,66376.0,0.30131]
[1721741654599,0.451963,66377.0,66376.0,0.30131]
[1721741654800,1.131481,66377.0,66376.0,0.30131]
[1721741655053,1.27850091,66377.0,66376.0,0.30131]
[1721741655224,1.8839999,66377.0,66376.0,0.30131]
[1721741655851,1.5326909,66377.0,66376.0,0.30631]
[1721741656049,1.8339999,66377.0,66376.0,0.30631]
[1721741656313,1.33567099,66377.0,66376.0,0.30131]
[1721741656480,1.5326909,66377.0,66376.0,0.30131]
[1721741656634,1.4826909,66377.0,66376.0,0.30131]
[1721741657651,1.4926909,66377.0,66376.0,0.30231]
[1721741658059,1.5926909,66377.0,66376.0,0.30231]
[1721741658297,1.4926909,66377.0,66376.0,0.30231]
[1721741658519,1.241481,66377.0,66376.0,0.30231]
[1721741658933,0.930172,66377.0,66376.0,0.30131]
[1721741659142,0.830172,66377.0,66376.0,0.30131]
[1721741659340,0.844172,66377.0,66376.0,0.30231]
[1721741659931,0.465963,66377.0,66376.0,0.30231]
[1721741660116,1.068581,66377.0,66376.0,0.30231]
[1721741660254,0.767272,66377.0,66376.0,0.30231]
[1721741660493,0.164654,66377.0,66376.0,0.30231]
[1721741660692,0.159654,66377.0,66376.0,0.30231]
[1721741660946,0.009,66377.0,66376.0,0.30231]
[1721741661181,0.009,66377.0,66376.0,0.452966]
[1721741661348,0.009,66377.0,66376.0,0.303223]
[1721741661491,0.268,66395.0,66378.0,0.150652]
[1721741661492,0.150641,66383.0,66378.0,0.150652]
[1721741661716,0.301274,66385.0,66377.0,0.0642]
[1721741661928,0.5565,66392.0,66377.0,0.0642]
[1721741661929,0.150652,66378.0,66377.0,0.0642]
[1721741662127,0.301285,66383.0,66377.0,0.0642]
[1721741662332,0.5565,66392.0,66378.0,0.15003277]
[1721741662553,0.012,66383.0,66379.0,0.3013]
[1721741662770,0.012,66383.0,66382.0,0.150643]
[1721741662992,0.012,66383.0,66382.0,1.30769543]
[1721741663197,0.012,66383.0,66382.0,0.44830991]
[1721741663429,0.012,66383.0,66382.0,1.20152491]
[1721741663703,0.002,66419.0,66396.0,0.5]
[1721741663953,0.002,66419.0,66394.0,0.05]
[1721741663954,0.002,66419.0,66418.0,0.817607]
[1721741664177,0.002,66419.0,66418.0,1.916981]
[1721741664386,0.002,66419.0,66418.0,2.519227]
[1721741664589,0.002,66419.0,66418.0,2.218104]
[1721741664988,0.002,66419.0,66418.0,1.76642]
[1721741665232,0.002,66419.0,66418.0,2.36512391]
[1721741665750,0.002,66419.0,66418.0,2.66624691]
[1721741666835,0.002,66419.0,66418.0,2.68924691]
[1721741667089,0.002,66419.0,66418.0,3.54036991]
[1721741667310,0.309497,66444.0,66425.0,1.264227]
[1721741667311,0.00849,66444.0,66425.0,1.264227]
[1721741667532,0.00849,66444.0,66438.0,0.216716]
[1721741667742,0.00849,66444.0,66438.0,1.34412991]
[1721741667913,0.00849,66444.0,66438.0,1.64516191]
[1721741668132,0.00849,66444.0,66438.0,2.11615656]
[1721741668332,0.00849,66444.0,66438.0,2.87965656]
[1721741668538,0.00849,66444.0,66443.0,1.769731]
[1721741668733,0.00849,66444.0,66443.0,2.34076091]
[1721741668936,0.00849,66444.0,66443.0,2.75006517]
[1721741669341,0.0151951,66464.0,66458.0,1.103293]
[1721741669563,0.0151951,66464.0,66458.0,1.63481191]
[1721741669762,0.0151951,66464.0,66458.0,0.30094]
[1721741669964,0.754342,66459.0,66458.0,0.30094]
[1721741670164,0.453405,66459.0,66458.0,0.30094]
[1721741670304,0.754342,66459.0,66458.0,0.30094]
[1721741670510,0.87344715,66459.0,66458.0,0.30094]
[1721741670712,1.055279,66459.0,66458.0,0.30094]
[1721741671142,1.30229891,66459.0,66458.0,0.30094]
[1721741671360,1.155319,66459.0,66458.0,0.30094]
[1721741671621,0.10204,66459.0,66458.0,0.30094]
[1721741671838,0.00204,66459.0,66458.0,0.331034]
[1721741672041,0.00204,66459.0,66458.0,0.782445]
[1721741672243,0.00204,66459.0,66458.0,1.23040591]
[1721741672894,0.00204,66459.0,66458.0,1.20031191]
[1721741673094,0.00204,66459.0,66458.0,1.22331191]
[1721741673308,0.00204,66459.0,66458.0,1.57425291]
[1721741673469,0.00204,66459.0,66458.0,1.72398267]
[1721741673668,0.00204,66459.0,66458.0,1.67398267]
[1721741673869,0.00204,66459.0,66458.0,1.57498267]
[1721741674096,0.00204,66459.0,66458.0,1.52525291]
[1721741674449,0.00204,66459.0,66458.0,1.52425291]
[1721741674655,0.00204,66459.0,66458.0,1.97519391]
[1721741674863,0.00204,66459.0,66458.0,2.21652367]
[1721741675075,0.0151951,66464.0,66458.0,2.21652367]
[1721741675076,0.0151951,66464.0,66463.0,1.764316]
[1721741675280,0.0151951,66464.0,66463.0,3.27667491]
[1721741675486,0.0151951,66464.0,66463.0,3.72792367]
[1721741675664,0.00049,66479.0,66478.0,0.6]
[1721741675903,0.00049,66479.0,66478.0,1.82857567]
[1721741676112,0.00049,66479.0,66478.0,2.43027767]
[1721741676322,0.00049,66479.0,66478.0,2.98224991]
[1721741676523,0.00049,66479.0,66478.0,3.08224991]
[1721741676674,0.00049,66479.0,66478.0,2.78139891]
[1721741676874,0.00049,66479.0,66478.0,3.08224991]
[1721741677087,0.00049,66479.0,66478.0,3.84933991]
[1721741677299,0.00094,66491.0,66490.0,2.003586]
[1721741677546,0.00094,66491.0,66490.0,3.29940591]
[1721741677719,0.002,66499.0,66498.0,1.70266]
[1721741677880,0.002,66499.0,66498.0,2.88969991]
[1721741678062,0.002,66499.0,66498.0,3.32544933]
[1721741678268,0.00848,66511.0,66505.0,2.00328]
[1721741678504,0.00848,66526.0,66518.0,0.901675]
[1721741678708,0.00848,66526.0,66518.0,3.12360491]
[1721741678909,0.00848,66526.0,66525.0,1.301595]
[1721741679109,0.00848,66526.0,66525.0,2.44139291]
[1721741679371,0.00848,66526.0,66525.0,1.94139291]
[1721741679649,0.00848,66526.0,66525.0,1.64075491]
[1721741679884,0.00848,66526.0,66525.0,0.85951257]
[1721741680154,0.158797,66526.0,66525.0,0.30064]
[1721741680686,0.158797,66526.0,66525.0,0.62804291]
[1721741680687,0.00848,66526.0,66525.0,0.62804291]
[1721741680946,0.00848,66526.0,66525.0,0.44765991]
[1721741681429,0.00848,66526.0,66525.0,0.58595991]
[1721741681662,0.00848,66526.0,66525.0,1.23695991]
[1721741681945,0.002,66539.0,66538.0,0.7113]
[1721741682168,0.002,66539.0,66538.0,2.99879991]
[1721741682384,0.002,66539.0,66538.0,3.14229191]
[1721741682585,0.002,66539.0,66538.0,2.34989991]
[1721741683044,0.002,66539.0,66538.0,2.37289991]
[1721741683314,0.002,66539.0,66538.0,2.42289991]
[1721741683535,0.002,66539.0,66538.0,2.52289991]
[1721741683738,0.002,66539.0,66538.0,2.62289991]
[1721741683945,0.00847,66555.0,66551.0,0.6]
[1721741684147,0.00801862,66552.0,66551.0,1.58053991]
[1721741684352,0.00801862,66552.0,66551.0,1.64363991]
[1721741684554,0.002,66579.0,66572.0,0.5]
[1721741684761,0.002,66579.0,66578.0,0.25]
[1721741684984,0.002,66579.0,66578.0,0.89736265]
[1721741685184,0.002,66579.0,66578.0,1.9328352]
[1721741685384,0.002,66579.0,66578.0,2.22825692]
[1721741685588,0.002,66579.0,66578.0,1.97816237]
[1721741685735,0.002,66579.0,66578.0,2.14818228]
[1721741685949,0.00848,66593.0,66592.0,0.15]
[1721741686103,0.00848,66593.0,66592.0,5.70906826]
[1721741686309,0.00848,66593.0,66592.0,5.72151643]
[1721741686912,0.00846,66634.0,66597.0,0.65]
[1721741687127,0.00846,66634.0,66614.0,0.1449]
[1721741687311,0.00846,66634.0,66629.0,0.04894489]
[1721741687530,0.00846,66634.0,66633.0,0.14701991]
[1721741687665,0.00846,66634.0,66633.0,0.44716991]
[1721741688710,0.01215392,66634.0,66633.0,0.30015]
[1721741689106,0.01215392,66634.0,66633.0,0.51216991]
[1721741689281,0.00846,66634.0,66633.0,0.47016991]
[1721741689909,0.00846,66634.0,66633.0,0.46834172]
[1721741690116,0.00846,66634.0,66633.0,0.5646478]
[1721741690445,0.00846,66634.0,66633.0,0.81906152]
[1721741690813,0.44093655,66662.0,66638.0,0.14630608]
[1721741691016,0.44093655,66662.0,66638.0,1.40340996]
[1721741691163,0.44093655,66662.0,66638.0,2.74084251]
[1721741691366,0.44093655,66662.0,66638.0,2.55173689]
[1721741691570,0.00369392,66654.0,66638.0,1.23547991]
[1721741691971,0.00369392,66658.0,66638.0,0.91697991]
[1721741692129,0.00369392,66658.0,66638.0,0.96328599]
[1721741692332,0.00369392,66652.0,66638.0,0.57197991]
[1721741692535,0.00369392,66645.0,66638.0,1.13547991]
[1721741692740,0.00369392,66645.0,66638.0,1.11247991]
[1721741692998,0.0615,66651.0,66638.0,1.25944256]
[1721741692999,0.00369392,66648.0,66638.0,1.25944256]
[1721741693161,0.00569392,66659.0,66638.0,1.37874864]
[1721741693376,0.00369392,66658.0,66638.0,1.33244256]
[1721741693585,0.00369392,66654.0,66638.0,1.28244256]
[1721741693781,0.44293655,66659.0,66638.0,1.42874864]
[1721741694032,0.44293655,66659.0,66638.0,1.95084319]
[1721741694149,0.44293655,66659.0,66638.0,2.11174319]
[1721741694352,0.002,66659.0,66638.0,2.18523261]
[1721741694558,0.002,66659.0,66638.0,2.26583261]
[1721741694760,0.002,66659.0,66638.0,2.92933261]
[1721741694979,0.002,66659.0,66658.0,0.05]
[1721741695274,0.002,66659.0,66658.0,1.27352052]
[1721741695618,0.002,66659.0,66658.0,1.51622052]
[1721741696952,0.002,66659.0,66658.0,1.6125266]
[1721741697364,0.002,66659.0,66658.0,1.46678491]
[1721741697578,0.002,66659.0,66658.0,1.51678491]
[1721741697790,0.002,66659.0,66658.0,1.61309099]
[1721741698409,0.002,66659.0,66658.0,1.51678491]
[1721741698594,0.002,66659.0,66658.0,1.46678491]
[1721741698940,0.002,66659.0,66658.0,1.51678491]
[1721741699951,0.002,66659.0,66658.0,1.46678491]
[1721741700133,0.002,66659.0,66658.0,1.20108491]
[1721741700338,0.00569392,66659.0,66658.0,0.317065]
[1721741700582,0.14339392,66659.0,66658.0,0.317065]
[1721741700999,0.08189392,66659.0,66658.0,0.46408491]
[1721741701200,0.08189392,66659.0,66658.0,0.317065]
[1721741701405,0.08189392,66659.0,66658.0,0.30187]
[1721741701522,0.08189392,66659.0,66658.0,0.44888991]
[1721741701726,0.08189392,66659.0,66658.0,0.42388991]
[1721741702122,0.00569392,66659.0,66658.0,0.42388991]
[1721741702327,0.002,66659.0,66658.0,0.42388991]
[1721741703428,0.002,66659.0,66658.0,1.14688991]
[1721741703634,0.002,66659.0,66658.0,1.19319599]
[1721741704052,0.002,66659.0,66658.0,1.14319599]
[1721741704253,0.002,66659.0,66658.0,1.04688991]
[1721741704429,0.002,66659.0,66658.0,1.14688991]
[1721741704656,0.002,66659.0,66658.0,1.19319599]
[1721741704862,0.002,66659.0,66658.0,1.27579599]
[1721741705480,0.002,66659.0,66658.0,1.17948991]
[1721741705683,0.002,66659.0,66658.0,1.62275864]
[1721741706095,0.0151951,66666.0,66665.0,0.90770608]
[1721741706245,0.0151951,66666.0,66665.0,1.50456599]
[1721741706451,0.0151951,66666.0,66665.0,1.57996599]
[1721741706653,0.0151951,66666.0,66665.0,1.72692864]
[1721741706855,0.00284,66679.0,66671.0,0.34630608]
[1721741707056,0.00284,66679.0,66678.0,0.94630608]
[1721741707261,0.002,66699.0,66698.0,0.6]
[1721741707458,0.002,66699.0,66698.0,1.66781599]
[1721741707819,0.00845,66706.0,66705.0,1.01518608]
[1721741708095,0.0033931,66721.0,66718.0,0.93668608]
[1721741708217,0.0033931,66721.0,66718.0,2.92984411]
[1721741708413,0.0033931,66721.0,66718.0,3.00558479]
[1721741708615,0.00845,66726.0,66725.0,1.18520608]
[1721741708818,0.002,66739.0,66732.0,1.21538608]
[1721741709047,0.002,66739.0,66738.0,0.36268608]
[1721741709252,0.002,66739.0,66738.0,0.96881643]
[1721741709449,0.002,66739.0,66738.0,1.09181643]
[1721741709868,0.002,66739.0,66738.0,4.21181272]
[1721741710095,4e-05,66750.0,66749.0,0.84630608]
[1721741710286,4e-05,66750.0,66749.0,1.84593721]
[1721741710482,4e-05,66750.0,66749.0,1.92913721]
[1721741710990,4e-05,66750.0,66749.0,1.72884242]
[1721741711221,0.44463047,66788.0,66758.0,0.64630608]
[1721741711468,0.05,66805.0,66758.0,0.64630608]
[1721741711469,0.002,66809.0,66797.0,0.05]
[1721741711653,0.002,66809.0,66787.0,0.3155]
[1721741711654,0.002,66809.0,66808.0,0.24630608]
[1721741711808,0.002,66809.0,66808.0,0.5262]
[1721741712026,0.002,66809.0,66808.0,0.3262]
[1721741712483,0.34381383,66809.0,66808.0,0.3262]
[1721741712748,0.1694753,66809.0,66808.0,0.1151]
[1721741713005,0.18509392,66809.0,66808.0,0.1151]
[1721741713244,0.08509392,66809.0,66808.0,0.1151]
[1721741713497,0.002,66809.0,66808.0,0.26211991]
[1721741714023,0.00569392,66809.0,66808.0,0.1151]